bitfinex/quotes_SOLUSD_20250217
["timestamp","ask_amount","ask_price","bid_price","bid_amount"]
[1739815459535,66.10860316,177.22,177.21,0.0001]
[1739815460050,66.10860316,177.22,177.2,0.0001]
[1739815460249,20.0,177.18,177.12,0.063]
[1739815460458,30.23295158,177.14,177.12,0.063]
[1739815460848,30.23295158,177.15,177.12,0.063]
[1739815461257,35.87805158,177.15,177.12,0.063]
[1739815461660,30.23295158,177.14,177.12,0.063]
[1739815462051,30.23295158,177.13,177.12,0.063]
[1739815462239,30.23295158,177.13,177.03,0.063]
[1739815462439,30.23295158,177.08,177.03,0.063]
[1739815463274,30.23295158,177.12,177.06,30.23295158]
[1739815463447,5.6452,177.14,177.08,30.23295158]
[1739815463779,5.6448,177.16,177.11,30.23295158]
[1739815464249,5.6443,177.17,177.12,30.23295158]
[1739815464449,5.6438,177.19,177.13,30.23295158]
[1739815464963,35.87675158,177.19,177.12,30.23295158]
[1739815465362,5.6438,177.19,177.13,30.23295158]
[1739815465760,35.87675158,177.19,177.13,30.23295158]
[1739815466574,5.6438,177.19,177.1,49.28953737]
[1739815466867,49.28953737,177.16,177.1,49.28953737]
[1739815467049,8.86041139,177.23,177.13,49.28953737]
[1739815467246,49.28953737,177.19,177.13,49.28953737]
[1739815467470,49.28953737,177.18,177.12,49.28953737]
[1739815467657,49.28953737,177.18,177.11,49.28953737]
[1739815468054,49.28953737,177.15,177.09,50.13617818]
[1739815468957,49.28953737,177.16,177.09,50.13617818]
[1739815469669,5.6449,177.15,177.1,49.28953737]
[1739815469884,5.6449,177.15,177.1,50.13621107]
[1739815470181,5.6445,177.17,177.12,49.28953737]
[1739815470869,5.6445,177.17,177.13,49.28953737]
[1739815471080,54.93403737,177.17,177.11,49.28953737]
[1739815471379,49.28953737,177.16,177.1,49.28953737]
[1739815471570,49.28953737,177.17,177.11,49.28953737]
[1739815472387,49.28953737,177.18,177.12,49.28953737]
[1739815472681,49.28953737,177.17,177.1,49.31953737]
[1739815472883,49.28953737,177.15,177.1,0.03]
[1739815473066,49.28953737,177.16,177.1,50.16624933]
[1739815473606,49.28953737,177.17,177.11,49.28953737]
[1739815473797,49.28953737,177.18,177.12,49.28953737]
[1739815474163,49.28953737,177.17,177.11,49.28953737]
[1739815474864,54.93393737,177.17,177.11,49.28953737]
[1739815475064,54.93393737,177.17,177.11,54.93563737]
[1739815475262,54.93393737,177.17,177.11,49.28953737]
[1739815475683,49.28953737,177.19,177.12,50.13617811]
[1739815475873,49.28953737,177.19,177.13,49.28953737]
[1739815476571,49.28953737,177.18,177.12,49.28953737]
[1739815476759,5.6442,177.17,177.11,55.78190659]
[1739815476963,54.93373737,177.17,177.11,49.28953737]
[1739815477195,5.6442,177.17,177.11,49.28953737]
[1739815477365,6.3121,177.23,177.13,49.28953737]
[1739815477366,54.93313737,177.19,177.13,49.28953737]
[1739815478582,49.28953737,177.18,177.12,50.1361282]
[1739815478969,49.28953737,177.17,177.11,57.77952137]
[1739815479182,54.93373737,177.17,177.11,50.90893737]
[1739815479684,49.28953737,177.16,177.1,50.16612137]
[1739815480206,49.28953737,177.16,177.1,49.31953737]
[1739815480582,5.6442,177.17,177.11,50.13617935]
[1739815481889,5.644,177.18,177.13,49.28953737]
[1739815482094,54.93313737,177.2,177.14,50.13606479]
[1739815482279,54.93253737,177.21,177.14,49.28953737]
[1739815482482,54.93253737,177.21,177.15,49.28953737]
[1739815482983,49.28953737,177.2,177.14,49.28953737]
[1739815483290,49.28953737,177.2,177.14,50.1360328]
[1739815483590,5.6436,177.19,177.13,54.93503737]
[1739815483789,5.6436,177.19,177.14,0.84648953]
[1739815483983,49.28953737,177.21,177.15,49.28953737]
[1739815484187,49.28953737,177.23,177.17,49.28953737]
[1739815484781,82.1,177.28,177.17,49.28953737]
[1739815484782,54.93123737,177.25,177.18,50.13587796]
[1739815484987,54.93123737,177.25,177.19,49.28953737]
[1739815485185,49.28953737,177.24,177.18,50.13587796]
[1739815485494,49.28953737,177.24,177.18,55.77977796]
[1739815485694,49.28953737,177.26,177.2,49.28953737]
[1739815485875,49.28953737,177.27,177.21,50.13567376]
[1739815486290,49.28953737,177.27,177.21,49.28953737]
[1739815486490,49.28953737,177.25,177.19,50.13566897]
[1739815486687,30.303354,177.24,177.18,30.303354]
[1739815487094,5.6408,177.28,177.2,30.303354]
[1739815487299,30.303354,177.27,177.21,0.84613533]
[1739815487485,30.303354,177.25,177.19,31.14953802]
[1739815487677,35.945254,177.25,177.19,0.84618402]
[1739815487879,35.945254,177.25,177.19,31.14953802]
[1739815488608,30.303354,177.25,177.19,31.14953802]
[1739815488784,30.303354,177.25,177.19,36.79303802]
[1739815488987,30.303354,177.26,177.19,36.79303802]
[1739815489184,30.303354,177.27,177.21,30.303354]
[1739815489584,30.303354,177.26,177.2,30.303354]
[1739815489900,35.944554,177.27,177.21,30.303354]
[1739815490077,30.303354,177.28,177.22,31.1494878]
[1739815491206,30.303354,177.29,177.23,30.303354]
[1739815491798,30.303354,177.29,177.22,31.14940624]
[1739815491799,30.303354,177.28,177.22,31.14940624]
[1739815492017,30.303354,177.28,177.17,22.0689]
[1739815492018,30.303354,177.23,177.17,7.9586]
[1739815492174,30.303354,177.23,177.18,0.84630164]
[1739815492395,30.303354,177.21,177.14,36.79465386]
[1739815493116,30.303354,177.18,177.13,89.5]
[1739815493797,30.303354,177.19,177.13,89.5]
[1739815494198,30.303354,177.18,177.13,89.5]
[1739815495224,30.303354,177.19,177.13,95.99204251]
[1739815495519,30.303354,177.19,177.13,90.34654251]
[1739815495919,35.946854,177.2,177.14,30.303354]
[1739815496300,30.303354,177.23,177.16,30.303354]
[1739815496501,30.303354,177.23,177.17,31.14968736]
[1739815496801,30.303354,177.22,177.16,30.303354]
[1739815497416,30.303354,177.18,177.13,89.5]
[1739815497618,30.303354,177.18,177.13,90.34652167]
[1739815497816,30.303354,177.19,177.13,95.99202167]
[1739815498015,30.303354,177.18,177.13,95.99202167]
[1739815498607,19.7471,177.24,177.13,95.99202167]
[1739815498608,30.303354,177.17,177.13,89.5]
[1739815499008,30.303354,177.18,177.13,89.5]
[1739815500030,30.303354,177.16,177.13,89.5]
[1739815500213,30.303354,177.15,177.13,89.5]
[1739815500411,30.303354,177.19,177.13,89.5]
[1739815500709,30.303354,177.14,177.13,89.5]
[1739815501233,30.303354,177.14,177.12,0.03]
[1739815501406,1.6234,177.2,177.12,0.03]
[1739815501605,30.303354,177.15,177.12,0.03]
[1739815501811,30.303354,177.18,177.12,31.18002183]
[1739815502023,30.303354,177.17,177.12,0.03]
[1739815502329,5.6442,177.18,177.12,0.03]
[1739815502330,30.303354,177.13,177.12,0.03]
[1739815502922,30.303354,177.17,177.12,0.03]
[1739815503333,30.303354,177.18,177.12,35.979154]
[1739815503521,30.303354,177.15,177.12,0.03]
[1739815503836,30.303354,177.13,177.12,0.03]
[1739815504011,35.948854,177.13,177.12,0.03]
[1739815506816,30.303354,177.17,177.12,0.03]
[1739815507435,30.303354,177.16,177.12,0.03]
[1739815507842,30.303354,177.13,177.12,0.03]
[1739815508423,35.948854,177.13,177.12,0.03]
[1739815508624,20.0,177.11,177.1,0.03]
[1739815508944,50.303354,177.11,177.1,0.03]
[1739815509640,50.303354,177.11,177.03,89.563]
[1739815509821,30.303354,177.04,177.03,89.563]
[1739815510445,35.951554,177.05,177.03,89.563]
[1739815510629,30.303354,177.04,177.03,89.563]
[1739815510826,35.951554,177.05,177.03,89.563]
[1739815513143,30.303354,177.04,177.03,89.563]
[1739815513519,35.951554,177.05,177.03,89.563]
[1739815513719,30.303354,177.04,177.03,0.063]
[1739815514041,35.951754,177.04,177.03,0.063]
[1739815515342,5.6484,177.04,177.03,0.063]
[1739815516744,35.951754,177.04,177.03,0.063]
[1739815517446,30.303354,177.06,177.03,0.063]
[1739815517747,30.303354,177.04,177.03,0.063]
[1739815518944,35.951754,177.04,177.03,0.063]
[1739815519751,30.303354,177.05,177.03,0.063]
[1739815520126,35.951154,177.06,177.03,0.063]
[1739815520349,30.303354,177.06,177.03,0.063]
[1739815520549,35.950854,177.07,177.03,0.063]
[1739815520723,30.303354,177.07,177.03,0.063]
[1739815520927,30.303354,177.08,177.03,0.063]
[1739815521130,5.6474,177.07,177.03,0.063]
[1739815521341,35.950754,177.07,177.03,0.063]
[1739815522243,0.063,177.1,177.03,30.366354]
[1739815522426,0.063,177.1,177.06,30.303354]
[1739815522622,0.063,177.1,177.08,30.303354]
[1739815522930,0.063,177.1,177.09,31.15018424]
[1739815523252,0.063,177.1,177.06,31.945854]
[1739815523436,0.063,177.1,177.06,1.6425]
[1739815523648,0.063,177.1,177.07,30.303354]
[1739815523844,0.063,177.1,177.09,30.303354]
[1739815524335,0.063,177.1,177.09,43.71520253]
[1739815525452,0.063,177.1,177.09,49.36200253]
[1739815526247,0.063,177.18,177.1,13.41184853]
[1739815526452,0.063,177.18,177.17,30.303354]
[1739815527024,0.063,177.18,177.16,30.303354]
[1739815527249,0.063,177.18,177.15,30.303354]
[1739815527445,0.063,177.18,177.13,35.948654]
[1739815527648,0.063,177.18,177.14,31.14985267]
[1739815527833,0.063,177.18,177.15,30.303354]
[1739815528033,0.063,177.18,177.14,30.303354]
[1739815531440,0.063,177.18,177.17,36.7938476]
[1739815531648,0.063,177.18,177.17,50.20569613]
[1739815532159,0.063,177.18,177.17,56.63939613]
[1739815533051,0.03,177.3,177.18,13.41184853]
[1739815533253,0.03,177.3,177.25,30.303354]
[1739815533452,0.03,177.3,177.27,30.303354]
[1739815533670,0.03,177.3,177.28,30.303354]
[1739815533847,0.03,177.3,177.29,30.303354]
[1739815534056,0.03,177.3,177.29,43.71520253]
[1739815534250,0.03,177.3,177.29,44.56086332]
[1739815534860,0.03,177.3,177.29,31.14901479]
[1739815535064,0.03,177.3,177.26,31.966554]
[1739815535268,30.333354,177.3,177.23,36.79130802]
[1739815536075,30.303354,177.27,177.21,89.52]
[1739815536282,30.303354,177.29,177.23,30.303354]
[1739815536449,30.333354,177.3,177.24,30.303354]
[1739815537148,30.333354,177.3,177.22,0.84599912]
[1739815537149,30.303354,177.28,177.22,0.84599912]
[1739815537344,30.303354,177.27,177.21,119.823354]
[1739815537770,30.303354,177.27,177.21,30.303354]
[1739815537958,30.303354,177.28,177.22,30.303354]
[1739815538881,30.303354,177.27,177.21,31.14946622]
[1739815539086,30.303354,177.27,177.21,36.79216622]
[1739815539447,30.303354,177.27,177.21,31.14946622]
[1739815539662,35.944454,177.27,177.21,31.14946622]
[1739815540183,30.303354,177.27,177.21,31.14946622]
[1739815540352,35.944554,177.27,177.21,31.14946622]
[1739815541368,35.944554,177.27,177.18,31.14955301]
[1739815541369,30.303354,177.24,177.18,31.14955301]
[1739815541967,30.303354,177.24,177.18,36.79345301]
[1739815542471,30.303354,177.24,177.18,31.14955301]
[1739815542972,30.303354,177.2,177.17,89.48]
[1739815543273,7.13047729,177.29,177.17,89.48]
[1739815543274,30.303354,177.19,177.17,89.48]
[1739815543960,6.2217,177.24,177.17,89.48]
[1739815544159,30.303354,177.22,177.17,89.48]
[1739815544465,30.303354,177.24,177.18,30.303354]
[1739815544643,30.303354,177.25,177.19,30.303354]
[1739815544850,30.303354,177.26,177.2,0.84622619]
[1739815545062,30.303354,177.22,177.17,89.48]
[1739815545378,30.303354,177.2,177.17,89.48]
[1739815545772,30.303354,177.19,177.17,89.48]
[1739815546557,30.303354,177.18,177.17,89.48]
[1739815546956,30.303354,177.19,177.17,89.48]
[1739815547156,1.6048,177.24,177.17,89.48]
[1739815547157,35.946854,177.2,177.17,89.48]
[1739815547557,30.303354,177.18,177.17,89.48]
[1739815548164,35.946854,177.2,177.17,89.48]
[1739815548580,30.303354,177.18,177.17,89.48]
[1739815549165,35.947254,177.18,177.16,0.03]
[1739815549381,30.303354,177.17,177.16,0.03]
[1739815550364,35.947254,177.18,177.16,0.03]
[1739815550664,30.303354,177.17,177.16,0.03]
[1739815551161,35.947554,177.17,177.16,0.03]
[1739815553299,30.303354,177.18,177.16,0.03]
[1739815553498,30.303354,177.22,177.16,30.333354]
[1739815553808,35.945654,177.23,177.17,30.303354]
[1739815554159,5.6423,177.23,177.18,31.1497069]
[1739815554361,35.945654,177.23,177.17,30.303354]
[1739815555195,30.303354,177.22,177.16,31.17964136]
[1739815555494,30.303354,177.19,177.16,0.03]
[1739815555891,5.643,177.21,177.18,30.303354]
[1739815556078,5.6423,177.23,177.18,30.303354]
[1739815556390,5.6423,177.23,177.19,30.303354]
[1739815556575,5.6423,177.23,177.18,30.303354]
[1739815556979,35.945654,177.23,177.17,30.303354]
[1739815557166,30.303354,177.2,177.16,0.03]
[1739815557369,35.947254,177.18,177.16,0.03]
[1739815557992,5.6439,177.18,177.16,0.03]
[1739815560094,30.303354,177.21,177.16,0.03]
[1739815560291,5.642,177.24,177.19,30.303354]
[1739815560492,5.642,177.24,177.18,0.03]
[1739815560493,30.303354,177.21,177.18,0.03]
[1739815560811,30.303354,177.19,177.18,0.03]
[1739815560972,19.7471,177.24,177.18,0.03]
[1739815561498,30.303354,177.22,177.18,0.03]
[1739815561882,30.303354,177.23,177.18,0.03]
[1739815562293,30.303354,177.22,177.18,0.03]
[1739815562606,35.945654,177.23,177.18,0.03]
[1739815562771,5.6423,177.23,177.18,0.03]
[1739815562970,5.6419,177.25,177.2,30.303354]
[1739815563191,0.063,177.26,177.21,30.303354]
[1739815563496,5.7044,177.26,177.21,30.303354]
[1739815563797,36.007754,177.26,177.2,30.303354]
[1739815564177,30.303354,177.25,177.19,30.303354]
[1739815564379,30.303354,177.25,177.18,0.87637093]
[1739815564380,30.303354,177.23,177.18,0.03]
[1739815564687,30.303354,177.25,177.19,30.303354]
[1739815565504,19.8079,177.26,177.18,0.03]
[1739815565505,30.303354,177.21,177.18,0.03]
[1739815565673,30.303354,177.2,177.18,0.03]
[1739815566392,30.303354,177.24,177.18,30.333354]
[1739815566882,5.6426,177.23,177.19,30.303354]
[1739815567384,30.303354,177.25,177.19,30.303354]
[1739815567596,5.6421,177.24,177.19,30.303354]
[1739815568096,35.945454,177.24,177.18,31.17962516]
[1739815568271,35.945454,177.24,177.18,35.977154]
[1739815568470,35.945154,177.25,177.2,30.303354]
[1739815568694,35.945154,177.25,177.2,31.14957333]
[1739815568903,30.303354,177.23,177.18,0.03]
[1739815569399,30.303354,177.21,177.18,0.03]
[1739815569589,30.303354,177.2,177.18,0.03]
[1739815569899,30.303354,177.21,177.18,0.03]
[1739815570087,30.303354,177.23,177.18,0.03]
[1739815570293,5.6425,177.23,177.18,30.333354]
[1739815570685,18.94094534,177.22,177.18,0.03]
[1739815571279,18.94094534,177.2,177.18,0.03]
[1739815571585,18.94094534,177.19,177.18,0.03]
[1739815571986,18.94094534,177.19,177.16,0.03]
[1739815572292,18.94094534,177.17,177.16,0.03]
[1739815572484,24.58514534,177.17,177.16,0.03]
[1739815573580,5.6442,177.17,177.16,0.03]
[1739815574398,24.58424534,177.21,177.16,0.03]
[1739815574705,35.95768962,177.21,177.16,0.03]
[1739815575102,35.95768962,177.21,177.17,30.31438962]
[1739815575103,5.6433,177.21,177.17,30.31438962]
[1739815575300,5.6427,177.22,177.17,31.16072626]
[1739815575609,5.6427,177.22,177.17,30.31438962]
[1739815576299,30.31438962,177.19,177.16,0.03]
[1739815576598,30.31438962,177.21,177.16,0.03]
[1739815576784,50.31438962,177.23,177.16,31.19081832]
[1739815576989,30.31438962,177.23,177.17,30.31438962]
[1739815577307,30.31438962,177.23,177.17,31.16072235]
[1739815577608,30.31438962,177.23,177.17,30.31438962]
[1739815577781,0.063,177.24,177.17,30.31438962]
[1739815577782,30.37738962,177.24,177.17,30.31438962]
[1739815577983,30.31438962,177.22,177.16,31.19072235]
[1739815578288,35.95698962,177.23,177.17,30.31438962]
[1739815580905,30.31438962,177.22,177.16,0.03]
[1739815581210,30.31438962,177.22,177.16,30.34438962]
[1739815582885,5.643,177.21,177.16,30.34438962]
[1739815583080,35.95738962,177.21,177.16,0.03]
[1739815583491,30.31438962,177.2,177.16,0.03]
[1739815583681,30.31438962,177.19,177.16,0.03]
[1739815584104,5.643,177.21,177.16,0.03]
[1739815584105,30.31438962,177.17,177.16,0.03]
[1739815585207,35.95848962,177.18,177.16,0.03]
[1739815585419,30.31438962,177.17,177.16,0.03]
[1739815585979,35.95848962,177.18,177.16,0.03]
[1739815586194,35.95738962,177.21,177.16,0.03]
[1739815586599,36.02008962,177.22,177.16,31.19086215]
[1739815586911,5.7057,177.22,177.17,30.31438962]
[1739815587103,36.02008962,177.22,177.16,31.19076647]
[1739815587311,0.063,177.22,177.18,30.31438962]
[1739815587497,0.063,177.22,177.19,30.31438962]
[1739815588629,0.063,177.22,177.21,30.31438962]
[1739815589190,0.063,177.22,177.19,30.31438962]
[1739815589521,0.063,177.22,177.18,32.75267389]
[1739815589999,0.063,177.22,177.19,30.31438962]
[1739815590203,30.31438962,177.21,177.16,0.03]
[1739815590525,30.31438962,177.17,177.16,0.03]
[1739815591231,30.31438962,177.17,177.16,0.0001]
[1739815591407,35.95858962,177.17,177.16,0.0001]
[1739815591930,38.41442675,177.17,177.16,0.0001]
[1739815592092,38.41442675,177.17,177.04,1.5891]
[1739815592434,30.31438962,177.06,177.03,89.563]
[1739815592649,30.31438962,177.12,177.03,89.563]
[1739815592650,30.31438962,177.07,177.03,89.563]
[1739815595447,30.31438962,177.06,177.03,89.563]
[1739815595619,30.31438962,177.05,177.03,89.563]
[1739815595816,35.96268962,177.05,177.03,89.563]
[1739815596841,30.31438962,177.06,177.03,89.563]
[1739815597048,30.31438962,177.11,177.05,30.31438962]
[1739815597245,30.31438962,177.07,177.03,89.563]
[1739815597437,30.31438962,177.06,177.03,89.563]
[1739815597859,35.96238962,177.06,177.03,89.563]
[1739815599074,30.31438962,177.07,177.03,89.563]
[1739815599763,35.96208962,177.07,177.03,89.563]
[1739815599946,30.31438962,177.06,177.03,89.563]
[1739815600870,35.96208962,177.07,177.03,89.563]
[1739815601072,30.31438962,177.06,177.03,89.563]
[1739815602765,35.96188962,177.07,177.03,89.563]
[1739815603567,30.31438962,177.05,177.03,89.563]
[1739815603731,30.31438962,177.06,177.03,89.563]
[1739815604660,5.6479,177.06,177.03,0.063]
[1739815605578,30.31438962,177.07,177.03,0.063]
[1739815606047,5.6474,177.08,177.03,30.37738962]
[1739815606479,30.31438962,177.13,177.06,30.31438962]
[1739815606772,35.95958962,177.14,177.08,30.31438962]
[1739815607279,35.95958962,177.14,177.07,30.31438962]
[1739815607465,30.31438962,177.13,177.07,30.31438962]
[1739815607967,5.6452,177.14,177.07,30.31438962]
[1739815608169,30.31438962,177.13,177.07,30.31438962]
[1739815608374,30.31438962,177.14,177.08,30.31438962]
[1739815608679,14.1086,177.2,177.09,6.5087]
[1739815608973,30.31438962,177.18,177.12,30.31438962]
[1739815609175,30.31438962,177.16,177.1,30.31438962]
[1739815609353,30.31438962,177.13,177.08,1.5914]
[1739815609556,30.31438962,177.16,177.1,30.31438962]
[1739815609871,30.31438962,177.17,177.11,30.31438962]
[1739815610376,30.31438962,177.18,177.12,30.31438962]
[1739815610677,30.31438962,177.19,177.13,30.31438962]
[1739815610850,35.95798962,177.19,177.13,30.31438962]
[1739815611272,30.31438962,177.18,177.11,30.31438962]
[1739815611471,30.31438962,177.15,177.09,30.31438962]
[1739815611645,30.31438962,177.16,177.1,30.31438962]
[1739815611985,30.31438962,177.14,177.08,2.43818276]
[1739815612160,30.31438962,177.12,177.08,1.5914]
[1739815612552,30.31438962,177.11,177.05,30.31438962]
[1739815612751,30.31438962,177.1,177.04,127.57378962]
[1739815613071,30.31438962,177.06,177.04,89.56]
[1739815613277,30.31438962,177.05,177.04,89.56]
[1739815613845,30.31438962,177.05,177.03,0.063]
[1739815614052,30.31438962,177.04,177.03,0.063]
[1739815614545,35.96278962,177.04,177.03,0.063]
[1739815619784,66.27717924,177.04,177.03,0.063]
[1739815620105,35.96278962,177.04,177.03,0.063]
[1739815620316,66.27717924,177.04,177.03,0.0001]
[1739815620672,35.96278962,177.04,177.03,0.0001]
[1739815621076,20.0,177.01,177.0,0.03]
[1739815621291,50.31438962,177.01,176.98,0.03]
[1739815621485,30.31438962,176.99,176.98,0.03]
[1739815621697,30.31438962,176.99,176.98,0.0001]
[1739815622003,20.0,176.92,176.85,0.03]
[1739815622314,30.31438962,176.88,176.85,0.03]
[1739815622510,30.31438962,176.89,176.85,0.03]
[1739815622897,30.31438962,176.87,176.85,0.03]
[1739815623085,30.31438962,176.86,176.85,0.03]
[1739815624396,30.31438962,176.88,176.85,0.03]
[1739815624604,30.31438962,176.91,176.85,0.03]
[1739815624912,30.31438962,176.89,176.85,0.03]
[1739815625093,30.31438962,176.86,176.85,0.03]
[1739815625806,60.62877924,176.86,176.85,0.0001]
[1739815626295,66.28287924,176.86,176.85,0.0001]
[1739815626902,35.96848962,176.86,176.85,0.0001]
[1739815627291,6.2421,176.93,176.85,0.0001]
[1739815627612,30.31438962,176.89,176.85,0.0001]
[1739815627792,30.31438962,176.91,176.85,30.31448962]
[1739815628205,30.31438962,176.94,176.87,30.31438962]
[1739815628511,35.96498962,176.97,176.91,30.31438962]
[1739815628720,30.31438962,176.98,176.91,30.31438962]
[1739815628905,30.31438962,176.98,176.92,30.31438962]
[1739815629114,35.96408962,177.01,176.94,30.31438962]
[1739815629292,35.96408962,177.01,176.95,30.31438962]
[1739815629612,30.31438962,177.0,176.94,30.31438962]
[1739815629824,30.31438962,177.0,176.93,31.90388962]
[1739815630225,35.96438962,176.99,176.93,1.5895]
[1739815630389,30.31438962,176.95,176.88,31.90388962]
[1739815630598,20.0,176.91,176.85,0.0001]
[1739815630898,6.0076,176.98,176.85,0.0001]
[1739815631098,30.31438962,176.87,176.85,0.0001]
[1739815631325,20.0,176.94,176.85,0.0001]
[1739815631511,30.31438962,176.87,176.85,0.0001]
[1739815631831,30.31438962,176.92,176.85,30.31448962]
[1739815631996,30.31438962,176.88,176.85,0.0001]
[1739815632533,29.81438962,176.9,176.85,0.0001]
[1739815632707,5.6519,176.93,176.85,0.0001]
[1739815632913,5.6519,176.93,176.86,49.43264441]
[1739815633230,49.43264441,176.92,176.86,49.43264441]
[1739815633427,49.43264441,176.92,176.85,49.43274441]
[1739815633639,49.43264441,176.94,176.88,49.43264441]
[1739815633932,5.65,176.99,176.93,49.43264441]
[1739815634312,49.43264441,176.94,176.89,7.7154]
[1739815634627,5.65,176.99,176.91,49.43264441]
[1739815634805,5.65,176.99,176.93,49.43264441]
[1739815635000,5.65,176.99,176.94,49.43264441]
[1739815635206,55.08264441,176.99,176.93,49.43264441]
[1739815636008,49.43264441,176.95,176.89,57.14804441]
[1739815636344,49.43264441,176.94,176.89,7.7154]
[1739815636928,49.43264441,176.96,176.9,49.43264441]
[1739815637109,49.43264441,176.95,176.89,57.14804441]
[1739815637309,55.08324441,176.97,176.91,49.43264441]
[1739815637635,49.43264441,177.01,176.95,49.43264441]
[1739815638135,49.43264441,176.97,176.91,49.43264441]
[1739815638335,49.43264441,176.94,176.89,7.7154]
[1739815638549,49.43264441,176.95,176.89,57.14804441]
[1739815638711,49.43264441,176.96,176.89,57.14804441]
[1739815639027,49.43264441,176.93,176.89,7.7154]
[1739815639236,49.43264441,176.9,176.87,89.64]
[1739815639454,49.43264441,176.92,176.87,89.64]
[1739815639614,49.43264441,176.96,176.9,49.43264441]
[1739815640027,5.6509,176.97,176.92,49.43264441]
[1739815640639,120.04214441,177.03,176.9,0.84763021]
[1739815640640,5.6503,176.99,176.94,49.43264441]
[1739815640818,49.43264441,176.97,176.91,49.43264441]
[1739815641237,49.43264441,176.96,176.9,49.43264441]
[1739815641428,49.43264441,176.95,176.89,49.43264441]
[1739815642334,49.43264441,176.97,176.91,49.43264441]
[1739815642518,49.43264441,176.98,176.91,49.43264441]
[1739815642940,49.43264441,176.98,176.92,49.43264441]
[1739815643150,49.43264441,177.01,176.95,49.43264441]
[1739815643950,49.43264441,177.0,176.94,49.43264441]
[1739815644155,49.43264441,176.98,176.92,49.43264441]
[1739815644530,21.94390424,177.1,176.94,49.43264441]
[1739815644531,49.43264441,177.0,176.94,49.43264441]
[1739815644730,49.43264441,177.01,176.95,49.43264441]
[1739815644951,49.43264441,176.99,176.93,49.43264441]
[1739815645431,49.43264441,176.98,176.92,49.43264441]
[1739815645645,49.43264441,176.99,176.92,49.43264441]
[1739815645928,49.43264441,176.98,176.92,49.43264441]
[1739815646126,49.43264441,176.97,176.91,55.08514441]
[1739815646751,49.43264441,176.98,176.92,49.43264441]
[1739815646956,49.43264441,177.0,176.94,49.43264441]
[1739815647156,5.6493,177.01,176.94,49.43264441]
[1739815647157,55.08194441,177.01,176.94,49.43264441]
[1739815647342,5.6493,177.01,176.95,49.43264441]
[1739815647531,55.08194441,177.01,176.95,49.43264441]
[1739815647940,49.43264441,177.02,176.96,49.43264441]
[1739815648146,49.43264441,177.0,176.95,7.7193]
[1739815648331,49.43264441,176.99,176.95,7.7193]
[1739815648656,49.43264441,176.99,176.95,1.6098]
[1739815649058,49.43264441,177.01,176.95,56.69364441]
[1739815649262,49.43264441,177.03,176.97,49.43264441]
[1739815650239,49.43264441,177.02,176.96,49.43264441]
[1739815650647,0.063,177.04,176.98,49.43264441]
[1739815650863,0.063,177.04,176.99,49.43264441]
[1739815651044,49.43264441,177.03,176.96,0.84735765]
[1739815651246,49.43264441,177.03,176.95,91.2298]
[1739815651444,49.43264441,177.01,176.95,140.66244441]
[1739815651766,49.49564441,177.04,176.98,49.43264441]
[1739815651967,55.14414441,177.04,176.98,49.43264441]
[1739815652140,49.49564441,177.04,176.98,49.43264441]
[1739815652341,49.49564441,177.04,176.99,5.65]
[1739815652545,0.063,177.04,176.99,55.08264441]
[1739815652764,55.14404441,177.04,176.98,49.43264441]
[1739815653075,0.063,177.04,177.0,49.43264441]
[1739815653762,0.063,177.04,176.99,6.3122]
[1739815653955,0.063,177.04,177.02,49.43264441]
[1739815654268,0.063,177.04,176.99,55.74484441]
[1739815654567,0.063,177.04,177.0,30.36777134]
[1739815655154,0.063,177.04,176.99,36.67997134]
[1739815655353,0.063,177.04,176.99,42.32967134]
[1739815655557,0.063,177.04,177.0,30.36777134]
[1739815656378,0.063,177.04,177.01,36.01707134]
[1739815656677,0.063,177.04,177.03,30.36777134]
[1739815656983,0.063,177.04,177.03,45.37491987]